fUST/lending_fUST_20240909
["ID","MTS","AMOUNT","RATE_DAILY","PERIOD"]
[337570817,1725828643511,-500.0,0.00050581,120]
[337570818,1725828643521,-500.0,0.00050581,120]
[337570819,1725828643531,-500.0,0.00050581,120]
[337570820,1725828643541,-500.0,0.00050581,120]
[337570821,1725828643550,-500.0,0.00050581,120]
[337570822,1725828643560,-500.0,0.00050581,120]
[337570823,1725828643569,-500.0,0.00050581,120]
[337570824,1725828643579,-637.73,0.00050581,120]
[337570825,1725828643589,-500.0,0.00050582,120]
[337570826,1725828643598,-500.0,0.00050582,120]
[337570827,1725828643609,-500.0,0.00050582,120]
[337570828,1725828643620,-500.0,0.00050582,120]
[337570829,1725828643631,-500.0,0.00050583,120]
[337570830,1725828643642,-500.0,0.00050583,120]
[337570831,1725828643652,-500.0,0.00050583,120]
[337570832,1725828643662,-500.0,0.00050583,120]
[337570834,1725828643672,-500.0,0.00050591,2]
[337570835,1725828643681,-500.0,0.00050591,120]
[337570836,1725828643691,-500.0,0.00050591,120]
[337570837,1725828643701,-186.15270909,0.00050591,120]
[337570838,1725828643710,-500.0,0.00050591,120]
[337570839,1725828643720,-475.27128082,0.00050591,120]
[337570840,1725828643730,-5738.73003779,0.00050614,61]
[337570841,1725828643739,-105480.8828034,0.00050614,2]
[337570842,1725828643750,-206.52884,0.00050614,120]
[337570843,1725828643759,-206.52884,0.00050614,120]
[337570844,1725828643770,-156.384981,0.00050614,120]
[337570845,1725828643779,-156.384981,0.00050614,120]
[337570846,1725828643789,-167.408896,0.00050614,120]
[337570847,1725828643799,-151.0,0.00050614,120]
[337570848,1725828643808,-167.408896,0.00050614,120]
[337570849,1725828643819,-151.0,0.00050614,120]
[337570850,1725828643831,-2767.59,0.00050684,120]
[337570851,1725828643840,-500.0,0.00050684,120]
[337570852,1725828643849,-3060.85,0.00050684,120]
[337570853,1725828643859,-884.83,0.00050684,120]
[337570854,1725828643870,-500.0,0.00050684,120]
[337570855,1725828643880,-500.0,0.00050684,120]
[337570856,1725828643892,-1114.7,0.00050684,120]
[337570857,1725828643903,-500.0,0.00050684,120]
[337570858,1725828643912,-549.19,0.00050684,120]
[337570859,1725828643921,-274.64919959,0.00050684,120]
[337570860,1725828643931,-942.47,0.00050684,120]
[337570861,1725828643940,-3447.7,0.00050684,120]
[337570862,1725828643949,-893.14,0.00050684,120]
[337570863,1725828643960,-214.22453097,0.00050684,120]
[337570864,1725828643969,-543.97,0.00050684,120]
[337570865,1725828643978,-881.98,0.00050684,120]
[337570866,1725828643988,-500.0,0.00050684,7]
[337570867,1725828643998,-602.63,0.00050684,120]
[337570868,1725828644008,-500.0,0.00050684,120]
[337570869,1725828644018,-500.0,0.00050684,120]
[337570870,1725828644027,-500.0,0.00050684,120]
[337570871,1725828644037,-6812.27,0.00050684,120]
[337570872,1725828644047,-500.0,0.00050684,2]
[337570873,1725828644056,-897.16,0.00050684,120]
[337570874,1725828644066,-719.24,0.00050684,120]
[337570875,1725828644075,-669.03,0.00050684,120]
[337570876,1725828644086,-624.27,0.00050684,120]
[337570877,1725828644098,-774.44,0.00050684,120]
[337570878,1725828644111,-585.68,0.00050684,120]
[337570879,1725828644122,-922.11,0.00050684,120]
[337570880,1725828644133,-856.06,0.00050684,120]
[337570881,1725828644145,-1376.06,0.00050684,120]
[337570882,1725828644155,-1123.12,0.00050684,120]
[337570883,1725828644165,-500.0,0.00050684,120]
[337570884,1725828644174,-500.0,0.00050684,120]
[337570885,1725828644183,-500.0,0.00050684,60]
[337570886,1725828644193,-500.0,0.00050684,120]
[337570887,1725828644204,-1887.91,0.00050684,120]
[337570888,1725828644214,-4950.93,0.00050684,120]
[337570890,1725828644225,-500.0,0.00050684,120]
[337570892,1725828644236,-500.0,0.00050684,120]
[337570894,1725828644245,-818.16,0.00050684,120]
[337570896,1725828644256,-695.73,0.00050684,120]
[337570898,1725828644265,-4375.04,0.00050684,120]
[337570900,1725828644274,-500.0,0.00050684,120]
[337570902,1725828644285,-1727.22,0.00050684,120]
[337570904,1725828644295,-500.0,0.00050684,120]
[337570906,1725828644304,-500.0,0.00050684,120]
[337570909,1725828644314,-500.0,0.00050684,120]
[337570911,1725828644323,-1678.0,0.00050684,120]
[337570913,1725828644333,-1119.62,0.00050684,120]
[337570914,1725828644343,-500.0,0.00050684,120]
[337570916,1725828644353,-500.0,0.00050684,120]
[337570918,1725828644363,-500.0,0.00050684,2]
[337570919,1725828644372,-500.0,0.00050684,120]
[337570920,1725828644381,-1067.55,0.00050684,120]
[337570921,1725828644391,-32964.51,0.00050684,120]
[337570922,1725828644409,-500.0,0.00050684,120]
[337570923,1725828644419,-500.0,0.00050684,120]
[337570924,1725828644429,-1938.63,0.00050684,120]
[337570925,1725828644439,-907.9,0.00050684,120]
[337570926,1725828644451,-1015.68,0.00050755,120]
[337570927,1725828644462,-1672.69,0.00050755,120]
[337570928,1725828644471,-500.0,0.00050755,120]
[337570929,1725828644481,-535.02,0.00050755,120]
[337570930,1725828644492,-652.93,0.00050755,120]
[337570931,1725828644502,-507.16815387,0.00050755,120]
[337570932,1725828644511,-218.76,0.00050805,120]
[337570933,1725828644521,-500.0,0.00050855,120]
[337570934,1725828644531,-500.0,0.00050855,120]
[337570935,1725828644540,-500.0,0.00050855,120]
[337570936,1725828644549,-500.0,0.00050855,120]
[337570937,1725828644559,-500.0,0.00050855,120]
[337570938,1725828644569,-500.0,0.00050855,120]
[337570939,1725828644578,-500.0,0.00050855,120]
[337570940,1725828644587,-691.88,0.00050855,120]
[337570941,1725828644597,-500.0,0.00050855,120]
[337570942,1725828644606,-1427.74,0.00050855,120]
[337570943,1725828644615,-500.0,0.00050855,120]
[337570944,1725828644626,-896.46,0.00050855,120]
[337570945,1725828644638,-500.0,0.00050855,30]
[337570946,1725828644650,-660.42,0.00050855,120]
[337570947,1725828644660,-633.79,0.00050855,120]
[337570948,1725828644670,-1294.37,0.00050855,120]
[337570949,1725828644679,-500.0,0.00050855,120]
[337570950,1725828644688,-500.0,0.00050855,120]
[337570951,1725828644698,-1921.5,0.00050855,120]
[337570952,1725828644707,-500.0,0.00050855,120]
[337570953,1725828644717,-500.0,0.00050855,120]
[337570954,1725828644727,-60262.04,0.00050855,120]
[337570955,1725828644737,-500.0,0.00050855,120]
[337570956,1725828644747,-500.0,0.00050855,120]
[337570957,1725828644757,-500.0,0.00050855,120]
[337570958,1725828644768,-500.0,0.00050855,120]
[337570959,1725828644778,-500.0,0.00050855,120]
[337570960,1725828644788,-500.0,0.00050855,120]
[337570961,1725828644798,-637.73,0.00050855,120]
[337570962,1725828644808,-147.01589708,0.00050866,14]
[337570963,1725828644819,-195.359525,0.00050866,14]
[337570964,1725828644830,-151.0,0.00050866,120]
[337570965,1725828644842,-151.0,0.00050866,120]
[337570966,1725828644854,-151.0,0.00050866,30]
[337570967,1725828644863,-151.0,0.00050866,120]
[337570968,1725828644873,-151.0,0.00050866,120]
[337570969,1725828644882,-225.841964,0.00050866,120]
[337570970,1725828644892,-225.841964,0.00050866,120]
[337570971,1725828644902,-151.0,0.00050866,120]
[337570972,1725828644911,-151.0,0.00050867,120]
[337570973,1725828644921,-151.0,0.00050867,120]
[337570974,1725828644930,-151.0,0.00050867,120]
[337570975,1725828644940,-164.333267,0.00050867,120]
[337570976,1725828644949,-164.333271,0.00050867,120]
[337570977,1725828644961,-463.35629478,0.00050898,2]
[337570978,1725828644970,-151.0,0.00050905,120]
[337570979,1725828644980,-151.0,0.00050905,120]
[337570980,1725828644989,-151.0,0.00050905,120]
[337570981,1725828644999,-195.359525,0.00050905,14]
[337570982,1725828645009,-195.359525,0.00050905,14]
[337570983,1725828645019,-151.0,0.00050905,120]
[337570984,1725828645029,-151.0,0.00050905,30]
[337570985,1725828645039,-151.0,0.00050905,120]
[337570986,1725828645049,-206.52884,0.00050905,120]
[337570987,1725828645059,-151.0,0.00050905,120]
[337570988,1725828645068,-206.52884,0.00050905,120]
[337570989,1725828645078,-156.384981,0.00050905,120]
[337570990,1725828645087,-225.841964,0.00050905,120]
[337570991,1725828645096,-156.384981,0.00050905,120]
[337570992,1725828645106,-225.841964,0.00050905,120]
[337570993,1725828645115,-167.408896,0.00050905,120]
[337570994,1725828645124,-151.0,0.00050905,120]
[337570995,1725828645134,-167.408896,0.00050905,120]
[337570996,1725828645143,-151.0,0.00050905,120]
[337570997,1725828645154,-151.0,0.00050905,120]
[337570998,1725828645163,-164383.08542942,0.00050905,2]
[337570999,1725828645173,-500.0,0.00050912,120]
[337571000,1725828645182,-811.72,0.00050912,120]
[337571001,1725828645191,-500.0,0.00050912,120]
[337571002,1725828645201,-194.333393,0.00050912,120]
[337571003,1725828645210,-500.0,0.00050912,120]
[337571004,1725828645219,-151.0,0.00050912,120]
[337571005,1725828645228,-500.0,0.00050912,120]
[337571006,1725828645238,-500.0,0.00050912,120]
[337571007,1725828645248,-500.0,0.00050912,120]
[337571008,1725828645259,-500.0,0.00050912,120]
[337571009,1725828645268,-500.0,0.00050912,120]
[337571010,1725828645278,-500.0,0.00050912,120]
[337571011,1725828645287,-500.0,0.00050912,120]
[337571012,1725828645297,-500.0,0.00050912,120]
[337571013,1725828645307,-175.41172744,0.00050912,120]
[337571014,1725828645316,-500.0,0.00050912,120]
[337571015,1725828645325,-500.0,0.00050912,120]
[337571016,1725828645346,-500.0,0.00050912,120]
[337571017,1725828645356,-500.0,0.00050912,120]
[337571018,1725828645366,-500.0,0.00050912,120]
[337571019,1725828645375,-500.0,0.00050912,120]
[337571020,1725828645385,-500.0,0.00050912,120]
[337571021,1725828645394,-500.0,0.00050912,120]
[337571022,1725828645406,-500.0,0.00050912,120]
[337571023,1725828645417,-500.0,0.00050912,120]
[337571024,1725828645427,-500.0,0.00050912,120]
[337571025,1725828645436,-500.0,0.00050912,120]
[337571026,1725828645447,-1288.44,0.00050912,120]
[337571027,1725828645458,-339.18703988,0.00050912,120]
[337571028,1725828645468,-500.0,0.00050912,120]
[337571029,1725828645477,-500.0,0.00050912,120]
[337571030,1725828645486,-500.0,0.00050912,120]
[337571031,1725828645496,-500.0,0.00050912,120]
[337571032,1725828645506,-610.74114365,0.00050912,120]
[337571033,1725828645516,-500.0,0.00050912,120]
[337571034,1725828645527,-846.27,0.00050912,120]
[337571035,1725828645538,-500.0,0.00050912,120]
[337571036,1725828645548,-516.14,0.00050912,120]
[337571037,1725828645557,-500.0,0.00050912,120]
[337571038,1725828645567,-500.0,0.00050912,120]
[337571039,1725828645579,-500.0,0.00050912,120]
[337571040,1725828645589,-500.0,0.00050912,120]
[337571041,1725828645598,-500.0,0.00050912,120]
[337571042,1725828645608,-411.73552016,0.00050912,120]
[337571043,1725828645617,-500.0,0.00050912,120]
[337571044,1725828645627,-1369.98,0.00050912,120]
[337571045,1725828645637,-500.0,0.00050912,120]
[337571046,1725828645648,-500.0,0.00050912,120]
[337571047,1725828645659,-292.0,0.00050912,120]
[337571048,1725828645668,-500.0,0.00050912,120]
[337571049,1725828645678,-503.76702713,0.00050912,120]
[337571050,1725828645688,-919.69,0.00050912,120]
[337571051,1725828645698,-500.0,0.00050912,120]
[337571052,1725828645708,-500.0,0.00050912,120]
[337571053,1725828645718,-151.0,0.00050912,120]
[337571054,1725828645727,-151.0,0.00050912,120]
[337571055,1725828645738,-500.0,0.00050912,120]
[337571056,1725828645747,-500.0,0.00050912,120]
[337571057,1725828645757,-1123.71,0.00050912,120]
[337571058,1725828645767,-500.0,0.00050912,2]
[337571059,1725828645779,-500.0,0.00050912,120]
[337571060,1725828645790,-500.0,0.00050912,120]
[337571061,1725828645801,-819.75,0.00050912,120]
[337571062,1725828645811,-500.0,0.00050912,120]
[337571063,1725828645823,-500.0,0.00050912,120]
[337571064,1725828645841,-511.87454157,0.00050912,120]
[337571065,1725828645851,-506.61787541,0.00050912,120]
[337571066,1725828645860,-500.0,0.00050912,120]
[337571067,1725828645869,-500.0,0.00050912,120]
[337571068,1725828645878,-500.0,0.00050912,120]
[337571069,1725828645888,-983.4,0.00050912,120]
[337571070,1725828645897,-524.04,0.00050912,120]
[337571071,1725828645907,-500.0,0.00050912,120]
[337571072,1725828645916,-500.0,0.00050912,120]
[337571073,1725828645926,-500.0,0.00050912,120]
[337571074,1725828645935,-500.0,0.00050912,2]
[337571075,1725828645945,-500.0,0.00050912,120]
[337571076,1725828645954,-500.0,0.00050912,120]
[337571077,1725828645964,-198.15034643,0.00050912,120]
[337571078,1725828645974,-500.0,0.00050912,120]
[337571079,1725828645983,-500.0,0.00050912,120]
[337571080,1725828645993,-500.0,0.00050912,120]
[337571081,1725828646002,-500.0,0.00050912,120]
[337571082,1725828646011,-500.0,0.00050912,120]
[337571083,1725828646021,-500.0,0.00050912,120]
[337571084,1725828646030,-500.0,0.00050912,120]
[337571085,1725828646040,-500.0,0.00050912,120]
[337571086,1725828646050,-536.37,0.00050912,120]
[337571087,1725828646059,-500.0,0.00050912,120]
[337571088,1725828646069,-507.10316306,0.00050912,120]
[337571089,1725828646080,-504.71785841,0.00050912,2]
[337571090,1725828646089,-500.0,0.00050912,120]
[337571091,1725828646099,-500.0,0.00050912,120]
[337571092,1725828646109,-2084.05,0.00050912,120]
[337571093,1725828646118,-500.0,0.00050912,120]
[337571094,1725828646129,-518.16552945,0.00050912,120]
[337571095,1725828646139,-195.359525,0.00050912,14]
[337571096,1725828646148,-195.359525,0.00050912,14]
[337571097,1725828646158,-500.0,0.00050912,120]
[337571098,1725828646170,-195.359525,0.00050912,14]
[337571099,1725828646179,-195.359525,0.00050912,14]
[337571100,1725828646189,-516.46904769,0.00050912,120]
[337571101,1725828646199,-500.0,0.00050912,120]
[337571102,1725828646209,-500.0,0.00050912,120]
[337571103,1725828646218,-1948.7,0.00050912,120]
[337571104,1725828646228,-500.0,0.00050912,120]
[337571105,1725828646237,-500.0,0.00050912,120]
[337571106,1725828646247,-224.27148364,0.00050912,120]
[337571107,1725828646256,-1992.48,0.00050912,120]
[337571108,1725828646266,-550.08989126,0.00050912,120]
[337571109,1725828646275,-500.0,0.00050912,120]
[337571110,1725828646285,-500.0,0.00050912,120]
[337571111,1725828646294,-500.0,0.00050912,120]
[337571112,1725828646304,-500.0,0.00050912,120]
[337571113,1725828646313,-500.0,0.00050912,120]
[337571115,1725828646323,-500.0,0.00050912,120]
[337571116,1725828646334,-500.0,0.00050912,120]
[337571117,1725828646344,-500.0,0.00050912,120]
[337571118,1725828646354,-500.0,0.00050912,120]
[337571119,1725828646365,-500.0,0.00050912,120]
[337571120,1725828646376,-500.0,0.00050912,120]
[337571122,1725828646387,-500.0,0.00050912,120]
[337571123,1725828646399,-500.0,0.00050912,120]
[337571124,1725828646412,-1000.0,0.00050912,60]
[337571125,1725828646425,-500.0,0.00050912,120]
[337571127,1725828646437,-1230.93,0.00050912,120]
[337571129,1725828646450,-500.0,0.00050912,120]
[337571131,1725828646460,-500.0,0.00050912,120]
[337571133,1725828646469,-500.0,0.00050912,120]
[337571135,1725828646480,-500.0,0.00050912,120]
[337571137,1725828646490,-500.0,0.00050912,120]
[337571139,1725828646500,-500.0,0.00050912,120]
[337571141,1725828646509,-855.53,0.00050912,120]
[337571143,1725828646519,-500.0,0.00050912,120]
[337571145,1725828646528,-567.57124357,0.00050912,120]
[337571147,1725828646538,-500.0,0.00050912,120]
[337571149,1725828646548,-500.0,0.00050912,120]
[337571151,1725828646558,-500.0,0.00050912,120]
[337571153,1725828646569,-500.0,0.00050912,120]
[337571155,1725828646579,-500.0,0.00050912,120]
[337571157,1725828646588,-164.15737138,0.00050912,120]
[337571159,1725828646598,-500.0,0.00050912,120]
[337571161,1725828646607,-778.47,0.00050912,120]
[337571163,1725828646617,-421.55068524,0.00050912,120]
[337571165,1725828646629,-500.0,0.00050912,120]
[337571167,1725828646639,-500.0,0.00050912,120]
[337571169,1725828646650,-500.0,0.00050912,120]
[337571172,1725828646662,-500.0,0.00050912,120]
[337571174,1725828646672,-500.0,0.00050912,120]
[337571176,1725828646682,-500.0,0.00050912,120]
[337571177,1725828646691,-500.0,0.00050912,120]
[337571180,1725828646702,-500.0,0.00050912,120]
[337571182,1725828646715,-551.0,0.00050912,120]
[337571184,1725828646725,-500.0,0.00050912,120]
[337571186,1725828646739,-500.0,0.00050912,120]
[337571187,1725828646751,-500.0,0.00050912,120]
[337571188,1725828646908,-500.0,0.00050912,120]
[337571189,1725828646918,-500.0,0.00050912,120]
[337571190,1725828646929,-500.0,0.00050912,120]
[337571191,1725828646938,-810.08,0.00050912,120]
[337571192,1725828646947,-612.94,0.00050912,120]
[337571193,1725828646957,-728.31,0.00050912,120]
[337571194,1725828646966,-219.21709981,0.00050912,120]
[337571195,1725828646975,-709.11,0.00050912,120]
[337571196,1725828646984,-500.0,0.00050912,120]
[337571197,1725828646994,-500.0,0.00050912,120]
[337571198,1725828647003,-1881.25,0.00050912,120]
[337571199,1725828647013,-627.31,0.00050912,120]
[337571200,1725828647022,-500.0,0.00050912,120]
[337571201,1725828647031,-464.94776295,0.00050912,120]
[337571202,1725828647040,-962.38,0.00050912,120]
[337571203,1725828647049,-500.0,0.00050912,120]
[337571204,1725828647060,-500.0,0.00050912,120]
[337571205,1725828647069,-500.0,0.00050912,120]
[337571206,1725828647080,-503.82799804,0.00050912,120]
[337571207,1725828647089,-725.37,0.00050912,120]
[337571208,1725828647098,-609.28,0.00050912,120]
[337571209,1725828647108,-511.77137534,0.00050912,120]
[337571210,1725828647118,-500.0,0.00050912,120]
[337571211,1725828647128,-500.0,0.00050912,120]
[337571212,1725828647137,-500.0,0.00050912,120]
[337571213,1725828647146,-1270.01,0.00050912,120]
[337571214,1725828647156,-500.0,0.00050912,120]
[337571215,1725828647168,-500.0,0.00050912,120]
[337571216,1725828647178,-500.0,0.00050912,120]
[337571217,1725828647188,-547.98,0.00050912,120]
[337571218,1725828647197,-558.29,0.00050912,120]
[337571219,1725828647206,-500.0,0.00050912,120]
[337571220,1725828647216,-500.0,0.00050912,120]
[337571221,1725828647226,-500.0,0.00050912,120]
[337571222,1725828647235,-500.0,0.00050912,120]
[337571223,1725828647244,-500.0,0.00050912,120]
[337571224,1725828647254,-202.29003797,0.00050912,120]
[337571225,1725828647264,-872.5,0.00050912,120]
[337571226,1725828647274,-500.0,0.00050912,120]
[337571227,1725828647283,-500.0,0.00050912,120]
[337571228,1725828647292,-500.0,0.00050912,120]
[337571229,1725828647302,-500.0,0.00050912,120]
[337571230,1725828647312,-507.6496661,0.00050912,120]
[337571231,1725828647322,-500.0,0.00050912,120]
[337571232,1725828647334,-500.0,0.00050912,120]
[337571233,1725828647343,-1586.07,0.00050912,120]
[337571234,1725828647354,-500.0,0.00050912,120]
[337571235,1725828647364,-500.0,0.00050912,120]
[337571236,1725828647373,-3866.99,0.00050912,120]
[337571237,1725828647383,-500.0,0.00050912,120]
[337571238,1725828647392,-500.0,0.00050912,120]
[337571239,1725828647404,-617.72,0.00050912,30]
[337571240,1725828647414,-500.0,0.00050912,120]
[337571241,1725828647423,-500.0,0.00050912,120]
[337571242,1725828647433,-607.59,0.00050912,120]
[337571243,1725828647443,-500.0,0.00050912,120]
[337571244,1725828647452,-679.68,0.00050912,120]
[337571245,1725828647462,-648.44484412,0.00050912,120]
[337571246,1725828647472,-500.0,0.00050912,120]
[337571247,1725828647481,-507.02,0.00050912,120]
[337571248,1725828647491,-577.84,0.00050912,120]
[337571249,1725828647501,-663.37,0.00050912,120]
[337571250,1725828647510,-500.0,0.00050912,120]
[337571251,1725828647519,-500.0,0.00050912,120]
[337571252,1725828647529,-500.0,0.00050912,120]
[337571253,1725828647538,-1624.05,0.00050912,120]
[337571254,1725828647548,-151.0,0.00050912,120]
[337571255,1725828647557,-500.0,0.00050912,120]
[337571256,1725828647566,-500.0,0.00050912,120]
[337571257,1725828647576,-681.58,0.00050912,120]
[337571258,1725828647586,-500.0,0.00050912,120]
[337571259,1725828647595,-500.0,0.00050912,120]
[337571260,1725828647605,-500.0,0.00050912,120]
[337571261,1725828647614,-500.0,0.00050912,120]
[337571262,1725828647623,-151.0,0.00050912,30]
[337571263,1725828647632,-500.0,0.00050912,20]
[337571264,1725828647641,-500.0,0.00050912,120]
[337571265,1725828647651,-500.0,0.00050912,120]
[337571266,1725828647659,-500.0,0.00050912,120]
[337571267,1725828647670,-1812.79,0.00050912,120]
[337571268,1725828647679,-500.0,0.00050912,120]
[337571269,1725828647688,-500.0,0.00050912,120]
[337571270,1725828647698,-500.0,0.00050912,120]
[337571271,1725828647707,-818.51,0.00050912,120]
[337571272,1725828647716,-500.0,0.00050912,120]
[337571273,1725828647726,-500.0,0.00050912,120]
[337571274,1725828647736,-500.0,0.00050912,120]
[337571275,1725828647745,-709.94,0.00050912,120]
[337571276,1725828647755,-500.0,0.00050912,120]
[337571277,1725828647765,-622.38,0.00050912,120]
[337571278,1725828647775,-500.0,0.00050912,120]
[337571279,1725828647785,-509.23242962,0.00050912,120]
[337571280,1725828647795,-500.0,0.00050912,120]
[337571281,1725828647804,-151.0,0.00050912,120]
[337571282,1725828647814,-206.52884,0.00050912,120]
[337571283,1725828647823,-500.0,0.00050912,120]
[337571284,1725828647832,-611.94660418,0.00050912,120]
[337571285,1725828647841,-151.0,0.00050912,120]
[337571286,1725828647851,-206.52884,0.00050912,120]
[337571287,1725828647861,-691.19,0.00050912,120]
[337571288,1725828647871,-500.0,0.00050912,120]
[337571289,1725828647879,-551.37,0.00050912,120]
[337571290,1725828647889,-156.384981,0.00050912,120]
[337571291,1725828647898,-500.0,0.00050912,120]
[337571292,1725828647907,-225.841964,0.00050912,120]
[337571293,1725828647918,-156.384981,0.00050912,120]
[337571294,1725828647928,-548.72,0.00050912,120]
[337571295,1725828647939,-225.841964,0.00050912,120]
[337571296,1725828647948,-167.408896,0.00050912,120]
[337571297,1725828647958,-605.49,0.00050912,120]
[337571298,1725828647967,-167.408896,0.00050912,120]
[337571299,1725828647976,-151.0,0.00050912,120]
[337571300,1725828647986,-500.0,0.00050912,120]
[337571301,1725828647996,-500.0,0.00050912,120]
[337571302,1725828648006,-500.0,0.00050912,120]
[337571303,1725828648015,-500.0,0.00050912,120]
[337571304,1725828648026,-500.0,0.00050912,120]
[337571305,1725828648036,-1000.0,0.00050912,120]
[337571306,1725828648046,-973.58,0.00050912,120]
[337571307,1725828648056,-500.0,0.00050912,120]
[337571308,1725828648066,-500.0,0.00050913,120]
[337571309,1725828648076,-500.0,0.00050913,120]
[337571310,1725828648088,-500.0,0.00050913,120]
[337571311,1725828648099,-370.6064264,0.00050913,120]
[337571312,1725828648109,-500.0,0.00050913,120]
[337571313,1725828648118,-1347.21,0.00050913,120]
[337571314,1725828648128,-500.0,0.00050913,120]
[337571315,1725828648138,-500.0,0.00050913,120]
[337571316,1725828648149,-500.0,0.00050913,120]
[337571317,1725828648159,-500.0,0.00050913,120]
[337571318,1725828648170,-500.0,0.00050913,120]
[337571319,1725828648179,-500.0,0.00050913,120]
[337571320,1725828648189,-500.0,0.00050913,120]
[337571321,1725828648200,-500.0,0.00050913,120]
[337571322,1725828648213,-500.0,0.00050913,120]
[337571323,1725828648226,-500.0,0.00050913,120]
[337571324,1725828648236,-757.06,0.00050913,120]
[337571325,1725828648250,-500.0,0.00050913,10]
[337571326,1725828648261,-500.0,0.00050913,120]
[337571327,1725828648270,-500.0,0.00050913,120]
[337571328,1725828648279,-500.0,0.00050913,120]
[337571329,1725828648288,-592.08,0.00050913,120]
[337571330,1725828648297,-500.0,0.00050913,2]
[337571331,1725828648306,-500.0,0.00050913,120]
[337571332,1725828648316,-500.0,0.00050913,120]
[337571333,1725828648325,-620.57864153,0.00050913,120]
[337571334,1725828648335,-500.0,0.00050913,120]
[337571335,1725828648345,-715.32,0.00050913,120]
[337571336,1725828648355,-527.45356,0.00050913,120]
[337571337,1725828648365,-500.0,0.00050913,120]
[337571338,1725828648374,-500.0,0.00050913,120]
[337571339,1725828648384,-500.0,0.00050913,120]
[337571340,1725828648394,-500.0,0.00050913,120]
[337571341,1725828648407,-500.0,0.00050913,120]
[337571342,1725828648417,-500.0,0.00050913,120]
[337571343,1725828648429,-500.0,0.00050913,120]
[337571344,1725828648440,-151.0,0.00050913,120]
[337571345,1725828648451,-273.25808367,0.00050913,120]
[337571346,1725828648462,-500.0,0.00050913,120]
[337571347,1725828648471,-500.0,0.00050913,120]
[337571348,1725828648482,-500.0,0.00050913,120]
[337571349,1725828648491,-500.0,0.00050913,120]
[337571350,1725828648501,-544.07,0.00050913,120]
[337571351,1725828648510,-500.0,0.00050913,120]
[337571352,1725828648519,-500.0,0.00050913,120]
[337571353,1725828648528,-500.0,0.00050913,120]
[337571354,1725828648538,-500.0,0.00050913,120]
[337571355,1725828648547,-500.0,0.00050913,120]
[337571356,1725828648557,-500.0,0.00050913,120]
[337571357,1725828648567,-500.0,0.00050913,120]
[337571358,1725828648577,-500.0,0.00050913,120]
[337571359,1725828648587,-500.19592283,0.00050913,120]
[337571360,1725828648597,-195.359525,0.00050913,14]
[337571361,1725828648607,-500.0,0.00050913,120]
[337571362,1725828648616,-195.359525,0.00050913,14]
[337571363,1725828648626,-519.29,0.00050913,120]
[337571364,1725828648635,-500.0,0.00050913,120]
[337571365,1725828648644,-500.0,0.00050913,120]